bitfinex-derivatives/quotes_BTCF0:USTF0_20240824
["timestamp","ask_amount","ask_price","bid_price","bid_amount"]
[1724533841254,0.550879,64009.0,64008.0,0.11868]
[1724533842365,0.3728,64009.0,64008.0,0.11868]
[1724533842959,0.012,64009.0,64008.0,0.11868]
[1724533843157,0.3728,64009.0,64008.0,0.11868]
[1724533843760,0.012,64009.0,64008.0,0.11868]
[1724533843966,0.3728,64009.0,64008.0,0.11868]
[1724533845458,0.44994873,64009.0,64008.0,0.11868]
[1724533845860,0.3728,64009.0,64008.0,0.11868]
[1724533846366,0.3728,64009.0,64008.0,0.21868]
[1724533850770,0.012,64009.0,64008.0,0.21868]
[1724533851375,0.012,64009.0,64008.0,0.29676]
[1724533853468,0.112,64009.0,64008.0,0.11868]
[1724533853666,0.18914873,64009.0,64008.0,0.11868]
[1724533854772,0.112,64009.0,64008.0,0.11868]
[1724533855161,0.190079,64009.0,64008.0,0.001]
[1724533855968,0.2160602,64009.0,64008.0,0.001]
[1724533858569,0.21611594,64009.0,64008.0,0.001]
[1724533861891,0.13803694,64009.0,64008.0,0.001]
[1724533862699,0.39883694,64009.0,64008.0,0.001]
[1724533863795,0.3728,64009.0,64008.0,0.001]
[1724533869796,0.012,64009.0,64008.0,0.001]
[1724533877205,0.112,64009.0,64008.0,0.001]
[1724533882307,0.112,64009.0,64008.0,0.04782778]
[1724533883026,0.112,64009.0,64008.0,0.001]
[1724533886214,0.112,64009.0,64008.0,0.04782778]
[1724533886716,0.112,64009.0,64008.0,0.001]
[1724533887518,0.112,64009.0,64008.0,0.04782778]
[1724533889012,0.112,64009.0,64008.0,0.001]
[1724533890331,0.112,64009.0,64008.0,0.04684335]
[1724533890518,0.13778725,64009.0,64004.0,0.16296695]
[1724533890825,0.07724714,64005.0,64004.0,0.11612]
[1724533891424,0.07728714,64005.0,64004.0,0.11612]
[1724533892325,0.07828714,64005.0,64004.0,0.11612]
[1724533892517,0.08128714,64005.0,64004.0,0.11612]
[1724533892721,0.36484,64005.0,64004.0,0.11612]
[1724533892929,0.44208714,64005.0,64004.0,0.11612]
[1724533893825,0.36484,64005.0,64004.0,0.11612]
[1724533894221,0.44208714,64005.0,64004.0,0.11612]
[1724533894616,0.36484,64005.0,64004.0,0.11612]
[1724533898026,0.36484,64005.0,64003.0,0.16775433]
[1724533898929,4e-05,64004.0,64003.0,0.16775433]
[1724533901023,4e-05,64004.0,64003.0,0.05163433]
[1724533901223,4e-05,64004.0,64003.0,0.16775433]
[1724533902530,0.00204,64004.0,64003.0,0.16775433]
[1724533904635,0.00204,64004.0,64003.0,0.00023433]
[1724533908737,0.080125,64004.0,64003.0,0.00023433]
[1724533908928,0.078091,63999.0,63998.0,0.0523]
[1724533909135,0.078094,63996.0,63995.0,0.11616]
[1724533909334,0.20341213,63996.0,63995.0,0.11616]
[1724533909536,0.20341213,63996.0,63991.0,4e-05]
[1724533909537,0.078098,63993.0,63991.0,4e-05]
[1724533909738,0.178099,63992.0,63991.0,4e-05]
[1724533910443,0.178139,63992.0,63991.0,4e-05]
[1724533910939,0.179139,63992.0,63991.0,0.00904]
[1724533912150,0.180139,63992.0,63991.0,0.01504]
[1724533912539,0.540939,63992.0,63991.0,0.01504]
[1724533914241,0.078107,63986.0,63985.0,0.00023433]
[1724533914440,0.538907,63986.0,63985.0,0.00023433]
[1724533914641,0.078114,63980.0,63979.0,0.0497]
[1724533914944,0.538914,63980.0,63979.0,0.0497]
[1724533916440,0.58607342,63980.0,63979.0,0.0557]
[1724533916642,0.539914,63980.0,63979.0,0.0557]
[1724533916848,0.58607342,63980.0,63979.0,0.0557]
[1724533917242,0.540914,63980.0,63979.0,0.0557]
[1724533918551,0.540954,63980.0,63979.0,0.0557]
[1724533919051,0.55872794,63980.0,63979.0,0.0557]
[1724533920144,0.60488736,63980.0,63979.0,0.0557]
[1724533920946,0.55872794,63980.0,63979.0,0.0557]
[1724533922849,0.540954,63980.0,63979.0,0.0557]
[1724533923548,0.58704682,63980.0,63979.0,0.0557]
[1724533924444,0.60515931,63980.0,63979.0,0.0557]
[1724533924848,0.55906649,63980.0,63979.0,0.0557]
[1724533925955,0.45906649,63980.0,63979.0,0.0557]
[1724533926249,0.55906649,63980.0,63979.0,0.0557]
[1724533926646,0.45906649,63980.0,63979.0,0.0557]
[1724533926856,0.48095249,63980.0,63979.0,0.133815]
[1724533928146,0.38095249,63980.0,63979.0,0.233815]
[1724533930957,0.00204,63980.0,63979.0,0.233815]
[1724533931548,0.00204,63980.0,63979.0,1.102735]
[1724533931747,0.00204,63980.0,63979.0,1.12104512]
[1724533931959,0.40689282,63991.0,63990.0,0.078102]
[1724533933046,0.40689282,63991.0,63989.0,0.0975]
[1724533933451,0.04609282,63990.0,63989.0,0.0975]
[1724533933656,0.14609282,63990.0,63989.0,0.0975]
[1724533934349,0.1,63990.0,63989.0,0.0975]
[1724533935258,0.14609282,63990.0,63989.0,0.1477]
[1724533935461,0.14609282,63990.0,63989.0,0.226803]
[1724533935758,0.1,63990.0,63989.0,0.226803]
[1724533937660,0.14709282,63990.0,63989.0,0.226803]
[1724533938447,0.101,63990.0,63989.0,0.226803]
[1724533938851,0.001,63990.0,63989.0,0.226803]
[1724533939756,0.04726119,63990.0,63989.0,0.226803]
[1724533940662,0.04726119,63990.0,63989.0,0.342483]
[1724533940858,0.04726119,63990.0,63989.0,0.703283]
[1724533941050,0.001,63990.0,63989.0,0.703283]
[1724533941254,0.3608,63994.0,63993.0,0.078098]
[1724533941454,0.3608,63994.0,63993.0,0.158098]
[1724533942055,0.3608,63994.0,63993.0,0.158138]
[1724533942558,0.3638,63994.0,63993.0,0.158138]
[1724533943361,0.3668,63994.0,63993.0,0.158138]
[1724533943860,0.3628,63994.0,63993.0,0.159138]
[1724533946253,0.3628,63994.0,63993.0,0.079138]
[1724533946458,0.3628,63994.0,63993.0,0.194858]
[1724533947357,0.3628,63994.0,63993.0,0.274858]
[1724533948071,0.08,63996.0,63993.0,0.274858]
[1724533949063,0.08,63996.0,63995.0,4e-05]
[1724533952262,0.04626119,63997.0,63995.0,0.11576]
[1724533952668,0.04626119,63997.0,63995.0,4e-05]
[1724533952960,0.04626119,63997.0,63996.0,4e-05]
[1724533954054,0.08023433,63998.0,63996.0,4e-05]
[1724533954566,0.002,63997.0,63996.0,4e-05]
[1724533954766,0.00196,63997.0,63996.0,4e-05]
[1724533954967,0.00196,63997.0,63995.0,0.21179927]
[1724533955164,0.04625559,63996.0,63995.0,0.21179927]
[1724533955362,0.04625559,63996.0,63995.0,0.29179927]
[1724533955866,0.04629559,63996.0,63995.0,0.29179927]
[1724533956066,4e-05,63996.0,63995.0,0.29179927]
[1724533958067,0.04631359,63996.0,63995.0,0.29179927]
[1724533959168,4e-05,63996.0,63995.0,0.29179927]
[1724533959465,0.04635189,63996.0,63995.0,0.29179927]
[1724533960266,4e-05,63996.0,63995.0,0.29179927]
[1724533962170,0.06167326,63996.0,63995.0,0.29179927]
[1724533962675,4e-05,63996.0,63995.0,0.29179927]
[1724533963063,0.06167326,63996.0,63995.0,0.29179927]
[1724533965274,4e-05,63996.0,63995.0,0.29179927]
[1724533966864,0.06186533,63996.0,63995.0,0.29179927]
[1724533967067,4e-05,63996.0,63995.0,0.29179927]
[1724533967871,4e-05,63996.0,63995.0,0.76059927]
[1724533968465,4e-05,63996.0,63995.0,0.29179927]
[1724533969773,4e-05,63996.0,63995.0,0.17607927]
[1724533969964,4e-05,63996.0,63995.0,0.29179927]
[1724533972473,4e-05,63996.0,63995.0,0.76059927]
[1724533972670,4e-05,63996.0,63995.0,1.16059927]
[1724533973069,4e-05,63996.0,63995.0,1.22300204]
[1724533973574,4e-05,63996.0,63995.0,0.82300204]
[1724533975582,4e-05,63996.0,63995.0,0.90109804]
[1724533975978,0.00023433,63998.0,63997.0,0.078093]
[1724533976185,0.00023433,63998.0,63997.0,0.518893]
[1724533976384,0.04636974,64001.0,64000.0,0.078089]
[1724533976686,0.04636974,64001.0,64000.0,0.158089]
[1724533976877,0.04636974,64002.0,64001.0,0.078088]
[1724533977073,0.04636974,64004.0,64001.0,0.27828204]
[1724533977271,0.04636974,64004.0,64003.0,0.08]
[1724533977880,0.04636974,64004.0,64003.0,0.08004]
[1724533978485,0.04636974,64004.0,64003.0,0.273766]
[1724533979076,0.04636974,64005.0,64004.0,0.078085]
[1724533979279,0.04636974,64005.0,64004.0,0.158085]
[1724533979880,0.04636974,64005.0,64004.0,0.158125]
[1724533980080,0.00023433,64010.0,64004.0,0.08004]
[1724533980375,0.018,64005.0,64004.0,4e-05]
[1724533981075,0.01,64005.0,64004.0,0.08004]
[1724533981275,0.06177448,64008.0,64004.0,0.08004]
[1724533981481,0.06177448,64008.0,64007.0,0.08]
[1724533982088,0.06177448,64008.0,64007.0,0.08004]
[1724533982387,0.04632806,64008.0,64007.0,0.158121]
[1724533983185,0.04656239,64010.0,64009.0,0.078079]
[1724533983887,0.04656239,64010.0,64009.0,0.078119]
[1724533984080,0.00023433,64010.0,64009.0,0.078119]
[1724533984592,0.01323433,64010.0,64009.0,0.078119]
[1724533984780,0.02723433,64010.0,64009.0,0.078119]
[1724533985887,0.01423433,64010.0,64009.0,0.078119]
[1724533986085,0.02123433,64010.0,64009.0,0.078119]
[1724533986883,0.01623433,64010.0,64009.0,0.078119]
[1724533988690,0.01623433,64010.0,64009.0,0.12490104]
[1724533990099,0.01623433,64010.0,64009.0,0.078119]
[1724533990897,0.01623433,64010.0,64009.0,0.12490104]
[1724533991092,0.01623433,64010.0,64009.0,0.12482091]
[1724533991395,0.01623433,64010.0,64009.0,0.078119]
[1724533992894,0.01623433,64010.0,64009.0,0.156198]
[1724533993591,0.01623433,64010.0,64009.0,0.271838]
[1724533994486,0.01623433,64010.0,64009.0,0.193759]
[1724533995490,0.01623433,64010.0,64009.0,0.193719]
[1724533995792,0.01623433,64010.0,64009.0,0.32041687]
[1724533996092,0.01623433,64010.0,64009.0,0.273719]
[1724533996297,0.01623433,64010.0,64009.0,0.32041687]
[1724533997197,0.01623433,64010.0,64009.0,0.273719]
[1724533997701,0.01623433,64010.0,64009.0,0.32043133]
[1724533998292,0.01623433,64010.0,64009.0,0.68123133]
[1724533998497,0.01623433,64010.0,64009.0,0.60123133]
[1724533998696,0.01623433,64010.0,64009.0,0.68123133]
[1724534000696,0.01623433,64010.0,64009.0,0.634519]
[1724534001091,0.01623433,64010.0,64009.0,0.68123133]
[1724534003396,0.01623433,64010.0,64009.0,0.32043133]
[1724534003704,0.01623433,64010.0,64009.0,0.68123133]
[1724534004105,0.01623433,64010.0,64009.0,0.634519]
[1724534006404,0.01623433,64010.0,64009.0,0.69692177]
[1724534006902,0.01623433,64010.0,64009.0,0.634519]
[1724534008520,0.01623433,64010.0,64009.0,0.273719]
[1724534008922,0.01623433,64010.0,64009.0,0.634519]
[1724534010525,0.01623433,64010.0,64009.0,0.76106728]
[1724534011027,0.01623433,64010.0,64009.0,0.8391463]
[1724534011328,0.00923433,64010.0,64009.0,0.7611178]
[1724534011532,0.01423433,64010.0,64009.0,0.6830388]
[1724534011831,0.01423433,64010.0,64009.0,0.7611178]
[1724534012127,0.00923433,64010.0,64009.0,0.68303088]
[1724534012433,0.01023433,64010.0,64009.0,0.76110988]
[1724534012634,0.01023433,64010.0,64009.0,0.68303088]
[1724534012838,0.01023433,64010.0,64009.0,0.76110988]
[1724534013335,0.00823433,64010.0,64009.0,0.76875061]
[1724534013632,0.00823433,64010.0,64009.0,0.69067161]
[1724534013834,0.00423433,64010.0,64009.0,0.69067161]
[1724534014035,0.00423433,64010.0,64009.0,0.76110988]
[1724534014426,0.00423433,64010.0,64009.0,0.76893804]
[1724534014732,0.00423433,64010.0,64009.0,0.76110988]
[1724534014930,0.00423433,64010.0,64009.0,0.40817006]
[1724534015133,0.04639209,64021.0,64015.0,0.078071]
[1724534015341,0.04639209,64021.0,64020.0,0.438865]
[1724534015831,0.04639209,64021.0,64020.0,0.438905]
[1724534016227,0.06177448,64025.0,64021.0,0.078064]
[1724534016228,0.04639209,64022.0,64021.0,0.078064]
[1724534016532,0.06177448,64025.0,64021.0,0.078064]
[1724534016533,0.04639209,64023.0,64022.0,0.078063]
[1724534016730,0.04639438,64024.0,64021.0,0.08]
[1724534016931,0.04639438,64024.0,64023.0,0.2204446]
[1724534017231,0.04639438,64025.0,64024.0,0.07806]
[1724534017425,0.04639438,64025.0,64024.0,0.15806]
[1724534018024,0.04639438,64025.0,64024.0,0.1581]
[1724534018226,0.04639438,64026.0,64025.0,0.078059]
[1724534018431,0.00023433,64027.0,64026.0,0.078058]
[1724534018630,0.00023433,64027.0,64026.0,0.554458]
[1724534019225,0.00023433,64027.0,64026.0,0.554498]
[1724534019936,0.00023433,64027.0,64026.0,0.193698]
[1724534020138,0.00023433,64027.0,64026.0,0.61680715]
[1724534020329,0.00023433,64027.0,64026.0,0.554498]
[1724534021033,0.00023433,64027.0,64026.0,0.555498]
[1724534021932,0.04639438,64039.0,64026.0,1.81499178]
[1724534022238,1.52258,64041.0,64038.0,0.4408]
[1724534022432,1.52258,64041.0,64039.0,0.04670693]
[1724534022938,1.52258,64041.0,64040.0,4e-05]
[1724534022939,1.52178,64041.0,64040.0,4e-05]
[1724534023331,1.091624,64041.0,64040.0,0.6087969]
[1724534023525,1.091624,64041.0,64040.0,0.1403569]
[1724534023725,1.104624,64041.0,64040.0,0.078081]
[1724534023935,1.104624,64041.0,64040.0,0.546521]
[1724534024132,1.104624,64041.0,64040.0,1.00866062]
[1724534024332,0.937427,64041.0,64040.0,0.96475632]
[1724534024526,0.08079292,64041.0,64040.0,1.04279732]
[1724534024735,9.2e-07,64041.0,64040.0,1.27620557]
[1724534024931,0.00023433,64046.0,64045.0,0.078035]
[1724534025239,3.3e-07,64046.0,64045.0,1.022835]
[1724534025538,0.07728291,64075.0,64045.0,1.022835]
[1724534025539,0.04639438,64075.0,64063.0,0.078012]
[1724534025731,0.13976948,64078.0,64065.0,0.3608]
[1724534025732,0.0488,64069.0,64065.0,0.3608]
[1724534026332,0.0488,64069.0,64066.0,0.1156]
[1724534026643,0.0488,64069.0,64068.0,0.08]
[1724534027336,0.0488,64069.0,64068.0,0.04098381]
[1724534027534,0.0618,64069.0,64068.0,0.04098381]
[1724534028244,0.0758,64069.0,64068.0,0.04098381]
[1724534028540,0.0758,64069.0,64068.0,0.19]
[1724534028931,0.0758,64069.0,64068.0,0.30556]
[1724534030039,0.0718,64069.0,64068.0,0.30656]
[1724534030540,0.0658,64069.0,64068.0,0.30656]
[1724534030843,0.0648,64069.0,64068.0,0.30656]
[1724534031938,0.0648,64069.0,64068.0,0.11656]
[1724534032140,0.0648,64069.0,64068.0,0.001]
[1724534040352,0.016,64069.0,64068.0,0.001]
[1724534042942,0.016,64069.0,64068.0,0.079007]
[1724534045547,0.016,64069.0,64068.0,0.197727]
[1724534047752,0.016,64069.0,64068.0,0.558527]
[1724534048454,0.04415911,64069.0,64068.0,0.40443425]
[1724534049051,0.04415911,64069.0,64068.0,0.48244125]
[1724534049256,0.1448435,64069.0,64068.0,0.48244125]
[1724534049454,0.24366823,64069.0,64068.0,0.36372125]
[1724534049652,0.1371713,64069.0,64068.0,0.48244125]
[1724534050049,0.24366823,64069.0,64068.0,0.48244125]
[1724534050248,0.24366823,64069.0,64068.0,0.276727]
[1724534050554,0.24373699,64069.0,64068.0,0.276727]
[1724534050751,0.13719971,64069.0,64068.0,0.276727]
[1724534051154,0.24373699,64069.0,64068.0,0.276727]
[1724534051356,0.13719971,64069.0,64068.0,0.276727]
[1724534051660,0.26072528,64069.0,64068.0,0.276727]
[1724534052057,0.13719971,64069.0,64068.0,0.276727]
[1724534052763,0.06236076,64069.0,64068.0,0.276727]
[1724534053163,0.016,64069.0,64068.0,0.276727]
[1724534053567,0.00023413,64073.0,64068.0,0.276727]
[1724534053568,0.04641003,64073.0,64069.0,0.46824]
[1724534053751,0.04641003,64073.0,64072.0,0.08]
[1724534054059,0.07726793,64083.0,64080.0,0.077992]
[1724534054265,0.07726793,64083.0,64082.0,0.15799]
[1724534054463,0.3608,64090.0,64082.0,0.15799]
[1724534054464,0.43806793,64084.0,64082.0,0.15799]
[1724534054666,0.3608,64084.0,64082.0,0.15799]
[1724534055162,0.3608,64084.0,64083.0,0.078028]
[1724534055371,0.07726793,64086.0,64085.0,0.077986]
[1724534055573,0.04641517,64095.0,64092.0,0.077977]
[1724534055864,0.04642155,64096.0,64094.0,0.4408]
[1724534056059,0.04642155,64096.0,64095.0,0.210274]
[1724534056365,0.02677476,64106.0,64095.0,0.210274]
[1724534056366,0.04642155,64097.0,64095.0,0.210274]
[1724534056570,0.04642155,64101.0,64097.0,0.07797]
[1724534056754,0.04642155,64101.0,64100.0,0.3608]
[1724534056963,0.00015283,64102.0,64100.0,0.3608]
[1724534057568,0.04632235,64101.0,64100.0,0.3608]
[1724534057769,0.00015283,64102.0,64100.0,0.3608]
[1724534057770,0.00015283,64102.0,64101.0,4e-05]
[1724534058568,0.02679308,64102.0,64101.0,8e-05]
[1724534058762,0.02679308,64102.0,64101.0,4e-05]
[1724534058963,0.12057966,64102.0,64101.0,4e-05]
[1724534059373,0.12957966,64102.0,64101.0,0.00104]
[1724534059567,0.12960687,64102.0,64101.0,0.00104]
[1724534059771,0.03579308,64102.0,64101.0,0.00104]
[1724534059969,0.01015283,64102.0,64101.0,0.00104]
[1724534060373,0.03479308,64102.0,64101.0,0.00204]
[1724534060577,0.03479308,64102.0,64101.0,0.00016684]
[1724534061169,0.10162757,64102.0,64101.0,0.00016684]
[1724534061680,0.00915283,64102.0,64101.0,0.00016684]
[1724534062280,0.00915283,64102.0,64101.0,0.19016684]
[1724534063273,0.00915283,64102.0,64101.0,0.26813284]
[1724534064184,0.00915283,64102.0,64101.0,0.62893284]
[1724534064568,0.00915283,64102.0,64101.0,0.38613284]
[1724534065274,0.00915283,64102.0,64101.0,0.74693284]
[1724534066483,0.01015283,64102.0,64101.0,0.74693284]
[1724534066672,0.01115283,64102.0,64101.0,0.74693284]
[1724534066873,0.01215283,64102.0,64101.0,0.746766]
[1724534067077,0.04622027,64109.0,64107.0,0.077959]
[1724534067275,0.04622027,64118.0,64108.0,0.3608]
[1724534067578,0.04622027,64121.0,64119.0,0.077945]
[1724534067880,0.06162702,64124.0,64120.0,0.11796]
[1724534068469,0.0461399,64121.0,64120.0,0.11796]
[1724534068666,0.42242702,64125.0,64123.0,4e-05]
[1724534068667,0.3608,64125.0,64123.0,4e-05]
[1724534069784,0.3608,64125.0,64117.0,0.19]
[1724534069785,0.3608,64125.0,64124.0,4e-05]
[1724534070281,0.3608,64125.0,64120.0,0.001]
[1724534070282,1.24164,64125.0,64120.0,0.001]
[1724534070471,0.43874,64123.0,64122.0,0.11596]
[1724534070670,0.92069995,64123.0,64118.0,0.11796]
[1724534070872,0.55990195,64122.0,64113.0,0.077952]
[1724534071073,0.3608,64116.0,64114.0,0.11796]
[1724534071279,0.3608,64116.0,64113.0,0.077952]
[1724534071280,0.39683787,64115.0,64113.0,0.077952]
[1724534071471,0.34403787,64114.0,64113.0,0.077952]
[1724534071671,0.22626519,64114.0,64113.0,0.11796]
[1724534071976,0.22626519,64114.0,64107.0,0.01775349]
[1724534072169,0.13836161,64109.0,64108.0,0.195918]
[1724534072372,0.13836161,64109.0,64108.0,0.077958]
[1724534072373,0.3646268,64109.0,64108.0,0.077958]
[1724534072571,0.45444136,64109.0,64108.0,0.11796]
[1724534072774,0.31607975,64109.0,64108.0,0.11796]
[1724534072976,0.31607975,64109.0,64105.0,0.00020712]
[1724534073176,0.13792208,64113.0,64108.0,0.11796]
[1724534073379,0.31603568,64112.0,64108.0,0.11796]
[1724534073679,4e-05,64114.0,64108.0,0.11896]
[1724534073680,0.008,64109.0,64108.0,0.11896]
[1724534073882,0.008,64109.0,64108.0,0.196918]
[1724534074080,0.01,64109.0,64108.0,0.197918]
[1724534074379,0.01,64109.0,64108.0,0.11996]
[1724534074380,0.3628,64109.0,64108.0,0.11996]
[1724534074575,0.3608,64109.0,64108.0,0.11996]
[1724534075082,0.3638,64109.0,64108.0,0.11996]
[1724534075776,0.3638,64109.0,64108.0,0.11896]
[1724534075976,0.3718,64109.0,64108.0,0.11996]
[1724534076579,0.917717,64109.0,64108.0,0.002]
[1724534076785,0.917717,64109.0,64105.0,0.00020712]
[1724534076786,0.077958,64108.0,64107.0,0.11796]
[1724534077284,0.945918,64108.0,64105.0,0.00020712]
[1724534077482,0.3608,64106.0,64105.0,0.00020712]
[1724534077978,0.36084,64106.0,64105.0,0.00020712]
[1724534079874,0.36584,64106.0,64105.0,0.00020712]
[1724534080080,0.36884,64106.0,64105.0,0.00020712]
[1724534081091,1.2368,64106.0,64087.0,0.19]
[1724534081290,0.3608,64095.0,64090.0,0.01793173]
[1724534081480,0.3608,64095.0,64093.0,0.16836]
[1724534081885,4e-05,64094.0,64093.0,0.246336]
[1724534082282,4e-05,64094.0,64093.0,0.253336]
[1724534082786,4e-05,64094.0,64093.0,0.246336]
[1724534083094,4e-05,64094.0,64093.0,0.260336]
[1724534084484,4e-05,64094.0,64093.0,0.263336]
[1724534084695,4e-05,64094.0,64093.0,0.18536]
[1724534085282,0.00104,64094.0,64093.0,0.18536]
[1724534086089,4e-05,64094.0,64093.0,0.18136]
[1724534086892,4e-05,64094.0,64093.0,0.17136]
[1724534087188,4e-05,64094.0,64093.0,0.17436]
[1724534088089,4e-05,64094.0,64093.0,0.252336]
[1724534093190,4e-05,64094.0,64093.0,0.29897065]
[1724534095985,4e-05,64094.0,64093.0,0.252336]
[1724534097494,4e-05,64094.0,64093.0,0.29897065]
[1724534098393,4e-05,64094.0,64093.0,0.332336]
[1724534100004,0.04616677,64094.0,64093.0,0.332336]
[1724534100395,4e-05,64094.0,64093.0,0.332336]
[1724534100596,4e-05,64094.0,64093.0,0.17436]
[1724534100899,4e-05,64094.0,64093.0,0.006]
[1724534100900,1.29042236,64094.0,64093.0,0.006]
[1724534101101,1.22892,64094.0,64093.0,0.006]
[1724534101297,1.306895,64094.0,64093.0,0.006]
[1724534102198,1.306895,64094.0,64093.0,0.003]
[1724534102402,1.38377296,64094.0,64093.0,0.003]
[1724534102801,1.40219465,64094.0,64093.0,0.003]
[1724534103003,0.077978,64092.0,64086.0,0.077984]
[1724534103205,0.4408,64088.0,64086.0,0.077984]
[1724534103798,0.44084,64088.0,64086.0,0.077984]
[1724534104404,0.36084,64088.0,64087.0,0.07821693]
[1724534104606,0.36084,64088.0,64087.0,0.08421693]
[1724534104905,0.36084,64088.0,64087.0,0.09021693]
[1724534105303,0.40724387,64088.0,64087.0,0.09021693]
[1724534105619,0.40724387,64088.0,64087.0,0.08421693]
[1724534105906,0.40824387,64088.0,64087.0,0.09021693]
[1724534106298,0.36184,64088.0,64087.0,0.09021693]
[1724534106500,0.40824387,64088.0,64087.0,0.09021693]
[1724534107896,0.04744387,64088.0,64087.0,0.09021693]
[1724534108103,0.40824387,64088.0,64087.0,0.09021693]
[1724534108315,0.36184,64088.0,64087.0,0.09021693]
[1724534108610,0.40824387,64088.0,64087.0,0.09021693]
[1724534108798,0.36184,64088.0,64087.0,0.09021693]
[1724534108995,0.40824387,64088.0,64087.0,0.09021693]
[1724534109200,0.36184,64088.0,64087.0,0.09021693]
[1724534109795,0.04744387,64088.0,64087.0,0.09021693]
[1724534109997,0.00104,64088.0,64087.0,0.45101693]
[1724534110511,0.00104,64088.0,64087.0,0.51328632]
[1724534112305,0.00104,64088.0,64087.0,0.45101693]
[1724534112502,0.00104,64088.0,64087.0,0.51329074]
[1724534113411,0.00104,64088.0,64087.0,0.45101693]
[1724534117802,0.3608,64095.0,64087.0,0.84115393]
[1724534118109,0.3608,64095.0,64092.0,0.25227393]
[1724534118308,0.3608,64095.0,64094.0,0.12468052]
[1724534118516,0.3608,64095.0,64094.0,0.12472052]
[1724534120111,0.3618,64095.0,64094.0,0.12472052]
[1724534120622,0.3628,64095.0,64094.0,0.12472052]
[1724534120817,0.3618,64095.0,64094.0,0.12472052]
[1724534121007,0.3628,64095.0,64094.0,0.12472052]
[1724534121400,0.3628,64095.0,64094.0,0.24120052]
[1724534123005,0.002,64095.0,64094.0,0.24120052]
[1724534123808,0.002,64095.0,64094.0,0.25928046]
[1724534124517,0.002,64095.0,64094.0,0.33928046]
[1724534125521,0.002,64095.0,64094.0,0.22280046]
[1724534125707,0.002,64095.0,64094.0,0.33844017]
[1724534131121,0.002,64095.0,64094.0,0.33843952]
[1724534131618,0.002,64095.0,64094.0,0.29173494]
[1724534136518,0.002,64095.0,64094.0,0.35400887]
[1724534136715,0.002,64095.0,64094.0,0.29173494]
[1724534137421,0.002,64095.0,64094.0,0.35400887]
[1724534137634,0.002,64095.0,64094.0,0.29173494]
[1724534137918,0.002,64095.0,64094.0,0.23836887]
[1724534138115,0.002,64095.0,64094.0,0.29173494]
[1724534138422,0.002,64095.0,64094.0,0.35400887]
[1724534138423,0.04840387,64095.0,64094.0,0.35400887]
[1724534139024,0.04849131,64095.0,64094.0,0.35400887]
[1724534139226,0.04849168,64095.0,64094.0,0.35406413]
[1724534139418,0.04849168,64095.0,64094.0,0.29173494]
[1724534139925,0.002,64095.0,64094.0,0.29173494]
[1724534140420,0.04850891,64095.0,64094.0,0.29173494]
[1724534140824,0.002,64095.0,64094.0,0.35559055]
[1724534142313,0.002,64095.0,64094.0,0.35502199]
[1724534143138,0.002,64095.0,64094.0,1.22306199]
[1724534143426,0.00023393,64100.0,64099.0,0.157969]
[1724534143732,0.00023393,64100.0,64099.0,0.518769]
[1724534144331,0.00023393,64100.0,64099.0,0.518809]
[1724534144526,0.00923393,64100.0,64099.0,0.520809]
[1724534145417,0.00923393,64100.0,64099.0,0.160009]
[1724534145629,1e-08,64100.0,64099.0,0.520809]
[1724534145928,1e-08,64100.0,64099.0,0.622909]
[1724534146120,1e-08,64100.0,64099.0,0.70081931]
[1724534146320,1e-08,64100.0,64099.0,0.622909]
[1724534146828,0.00300001,64100.0,64099.0,0.621909]
[1724534147031,0.00300001,64100.0,64099.0,0.69981931]
[1724534147425,0.00300001,64100.0,64099.0,0.621909]
[1724534147830,0.00300001,64100.0,64099.0,0.69981931]
[1724534148333,0.00300001,64100.0,64099.0,0.621909]
[1724534149325,0.00300001,64100.0,64099.0,0.76197342]
[1724534149927,0.00300001,64100.0,64099.0,0.76220102]
[1724534150322,0.00300001,64100.0,64099.0,0.69975154]
[1724534150533,0.00300001,64100.0,64099.0,0.541909]
[1724534150825,0.00300001,64100.0,64099.0,0.686549]
[1724534151030,0.00300001,64100.0,64099.0,0.519809]
[1724534151227,0.00300001,64100.0,64099.0,0.635449]
[1724534154421,0.00300001,64100.0,64099.0,0.519809]
[1724534154623,0.00300001,64100.0,64099.0,0.69767451]
[1724534155030,0.00300001,64100.0,64099.0,0.58207451]
[1724534155228,0.00300001,64100.0,64099.0,0.69759451]
[1724534158236,0.00300001,64100.0,64099.0,0.6975982]
[1724534159132,0.00300001,64100.0,64099.0,0.3367982]
[1724534161634,0.00300001,64100.0,64099.0,0.274529]
[1724534161831,0.00300001,64100.0,64099.0,0.33680753]
[1724534162338,0.00300001,64100.0,64099.0,0.274529]
[1724534170441,0.04950892,64100.0,64099.0,0.35237154]
[1724534170647,0.04950892,64100.0,64099.0,0.274529]
[1724534171239,0.04950892,64100.0,64099.0,0.35237154]
[1724534172448,0.04950892,64100.0,64099.0,0.41590759]
[1724534173847,0.04650902,64100.0,64099.0,1.0646]
[1724534174047,0.00023327,64106.0,64101.0,0.077966]
[1724534174349,0.00023327,64106.0,64105.0,0.596724]
[1724534174546,0.00023327,64106.0,64105.0,0.73981766]
[1724534174848,0.00023327,64106.0,64105.0,1.60781766]
[1724534175956,0.0465143,64120.0,64117.0,0.077946]
[1724534176247,0.0465143,64120.0,64118.0,0.273466]
[1724534176546,0.0465143,64121.0,64118.0,0.273466]
[1724534176751,0.0465143,64122.0,64118.0,0.273506]
[1724534177140,0.0465143,64123.0,64118.0,0.273506]
[1724534177450,0.0605,64125.0,64118.0,0.273506]
[1724534177451,0.0465143,64124.0,64118.0,0.273506]
[1724534177644,0.0465143,64124.0,64118.0,0.32016886]
[1724534178044,0.3658,64119.0,64118.0,0.273506]
[1724534178247,0.3658,64119.0,64118.0,0.32016661]
[1724534178842,0.3648,64119.0,64118.0,0.32016661]
[1724534179445,0.3648,64119.0,64118.0,0.273506]
[1724534179644,0.004,64119.0,64118.0,0.273506]
[1724534184043,0.004,64119.0,64118.0,0.33577432]
[1724534184553,0.004,64119.0,64118.0,0.273506]
[1724534186146,0.3608,64132.0,64118.0,1.06344]